bitfinex/quotes_BTCUSD_20220211
["timestamp","ask_amount","ask_price","bid_price","bid_amount"]
[1644551013965,0.26420031,43379.0,43375.0,0.02174966]
[1644551014404,0.26420031,43379.0,43375.0,0.02114113]
[1644551014604,0.26420031,43379.0,43375.0,0.02174966]
[1644551015604,0.26420031,43379.0,43375.0,0.02114113]
[1644551015805,0.26420031,43379.0,43375.0,0.04289079]
[1644551016104,0.26420031,43379.0,43375.0,0.02174966]
[1644551016905,0.26420031,43379.0,43375.0,0.02114113]
[1644551017108,0.26420031,43379.0,43375.0,0.02174966]
[1644551017507,0.0463,43378.0,43375.0,0.02174966]
[1644551017954,0.0463,43378.0,43375.0,0.04289079]
[1644551018155,0.0463,43378.0,43375.0,0.04228226]
[1644551019959,0.0463,43378.0,43375.0,0.04258226]
[1644551020156,0.3962,43378.0,43375.0,0.02144113]
[1644551020357,0.4962,43378.0,43375.0,0.02144113]
[1644551020757,0.23672393,43365.0,43357.0,0.3]
[1644551020957,0.23672393,43365.0,43356.0,0.115384]
[1644551020958,0.0463,43364.0,43356.0,0.115384]
[1644551021457,0.0463,43364.0,43356.0,0.165384]
[1644551021713,0.32814683,43362.0,43360.0,0.115383]
[1644551021909,0.0463,43361.0,43353.0,0.115392]
[1644551022105,0.0463,43361.0,43354.0,0.05]
[1644551022306,0.0463,43361.0,43357.0,0.05]
[1644551022505,0.0463,43361.0,43358.0,0.323982]
[1644551023505,0.0463,43361.0,43357.0,0.107701]
[1644551024509,0.0463,43361.0,43357.0,0.057701]
[1644551024709,0.0463,43361.0,43360.0,0.373982]
[1644551025109,0.0463,43361.0,43360.0,0.423982]
[1644551025313,0.0463,43361.0,43360.0,0.473982]
[1644551028161,0.0463,43361.0,43360.0,0.423982]
[1644551029407,0.0463,43361.0,43360.0,0.373982]
[1644551030106,0.0463,43361.0,43360.0,0.423982]
[1644551030306,0.0463,43361.0,43360.0,0.373982]
[1644551033964,0.0463,43361.0,43358.0,0.00060724]
[1644551034962,0.1168,43368.0,43359.0,0.115389]
[1644551034963,0.06918254,43364.0,43359.0,0.115389]
[1644551036262,0.06918254,43364.0,43360.0,0.057693]
[1644551036463,0.06918254,43364.0,43360.0,0.115384]
[1644551037706,0.06918254,43364.0,43360.0,0.11599122]
[1644551038710,0.06918254,43364.0,43361.0,0.431673]
[1644551038907,0.06918254,43364.0,43362.0,0.381666]
[1644551039107,0.06918254,43364.0,43363.0,0.323982]
[1644551039307,0.06918254,43364.0,43363.0,0.373982]
[1644551039507,0.06918254,43364.0,43363.0,0.423982]
[1644551039912,0.06918254,43364.0,43363.0,0.373982]
[1644551040107,0.06918254,43364.0,43363.0,0.05]
[1644551040763,0.06918254,43364.0,43362.0,0.057684]
[1644551041161,0.06918254,43364.0,43362.0,0.107684]
[1644551041561,0.06918254,43364.0,43363.0,0.373982]
[1644551042161,0.06918254,43364.0,43363.0,0.37386693]
[1644551042565,0.06918254,43364.0,43363.0,0.323982]
[1644551042763,0.06918254,43364.0,43363.0,0.37386693]
[1644551042963,0.06918254,43364.0,43363.0,0.323982]
[1644551043165,0.06918254,43364.0,43362.0,0.16537323]
[1644551043166,0.06918254,43364.0,43362.0,0.057684]
[1644551043364,0.06918254,43364.0,43359.0,0.057702]
[1644551043365,0.11548254,43364.0,43359.0,0.057702]
[1644551043566,0.11548254,43364.0,43361.0,0.0006072]
[1644551044217,0.52566937,43364.0,43361.0,0.0006072]
[1644551044613,0.52566937,43364.0,43360.0,0.057703]
[1644551044912,0.52566937,43364.0,43360.0,0.05831021]
[1644551045913,0.52566937,43364.0,43360.0,0.057703]
[1644551046112,0.52566937,43364.0,43360.0,0.05831022]
[1644551047014,0.52566937,43364.0,43360.0,0.057703]
[1644551047214,0.62566937,43364.0,43360.0,0.00060722]
[1644551047413,0.62578444,43364.0,43360.0,0.00060722]
[1644551048260,0.62578444,43364.0,43353.0,0.115412]
[1644551048460,0.62578444,43364.0,43360.0,0.00060722]
[1644551049461,0.26491008,43357.0,43353.0,0.173118]
[1644551049663,0.26491008,43357.0,43354.0,0.115411]
[1644551049664,0.62428332,43357.0,43354.0,0.115411]
[1644551049863,0.68198932,43357.0,43354.0,0.115411]
[1644551050365,0.104006,43357.0,43354.0,0.115411]
[1644551050964,0.0463,43357.0,43354.0,0.115411]
[1644551051564,0.30203171,43357.0,43354.0,0.23081799]
[1644551051808,0.0463,43357.0,43354.0,0.23081799]
[1644551052309,0.0463,43357.0,43355.0,0.057702]
[1644551052709,0.0463,43357.0,43356.0,0.323982]
[1644551053008,0.0463,43357.0,43355.0,0.057702]
[1644551054508,0.0463,43357.0,43356.0,0.323982]
[1644551054709,0.0463,43357.0,43355.0,0.057702]
[1644551054910,0.0463,43357.0,43356.0,0.323982]
[1644551055110,0.0463,43357.0,43355.0,0.057702]
[1644551055961,0.0463,43357.0,43355.0,0.11540291]
[1644551056161,0.0413,43357.0,43355.0,0.11540291]
[1644551056764,0.0413,43357.0,43355.0,0.16540291]
[1644551057161,0.0413,43357.0,43355.0,0.21528784]
[1644551057361,0.0413,43357.0,43356.0,0.323982]
[1644551057564,0.06918254,43364.0,43358.0,0.11538786]
[1644551057765,0.06918254,43364.0,43359.0,0.423982]
[1644551057967,0.06918254,43364.0,43360.0,0.323982]
[1644551058665,0.06918254,43364.0,43360.0,0.115383]
[1644551059228,0.06918254,43364.0,43360.0,0.11587325]
[1644551060623,0.12687754,43364.0,43360.0,0.11587325]
[1644551060822,0.37376062,43363.0,43360.0,0.11587325]
[1644551061022,0.37376062,43363.0,43360.0,0.05818125]
[1644551061721,0.37376062,43363.0,43360.0,0.057691]
[1644551062121,0.057698,43362.0,43360.0,0.057691]
[1644551063861,0.0463,43363.0,43360.0,0.115387]
[1644551064261,0.0463,43363.0,43360.0,0.17307976]
[1644551064461,0.0463,43363.0,43361.0,0.057691]
[1644551065262,0.06918254,43364.0,43361.0,0.057691]
[1644551065864,0.06918254,43364.0,43361.0,0.173065]
[1644551066062,0.06918254,43364.0,43361.0,0.23075591]
[1644551066261,0.06918254,43364.0,43362.0,0.115382]
[1644551067209,0.06918254,43364.0,43362.0,0.2495884]
[1644551067409,0.06918254,43364.0,43363.0,0.323982]
[1644551067610,0.06918254,43364.0,43362.0,0.19189902]
[1644551068710,0.06918254,43364.0,43363.0,0.05]
[1644551071964,0.06918254,43364.0,43362.0,0.1730725]
[1644551072764,0.06918254,43364.0,43362.0,0.22295743]
[1644551072964,0.06918254,43364.0,43363.0,0.65310613]
[1644551073166,0.06918254,43364.0,43363.0,0.373982]
[1644551073364,0.06918254,43364.0,43363.0,0.65394817]
[1644551073768,0.06918254,43364.0,43363.0,0.323982]
[1644551073966,0.06918254,43364.0,43362.0,0.1730725]
[1644551074220,0.06918254,43364.0,43363.0,0.323982]
[1644551074614,0.06918254,43364.0,43363.0,0.04988493]
[1644551074817,0.06918254,43364.0,43363.0,0.09988493]
[1644551075016,0.06918254,43364.0,43363.0,0.82386693]
[1644551075421,0.12737971,43375.0,43363.0,0.82386693]
[1644551075422,0.12737971,43375.0,43366.0,0.057672]
[1644551075617,0.02030653,43375.0,43374.0,0.04988493]
[1644551075818,0.02030653,43375.0,43374.0,0.37386693]
[1644551076218,0.01930653,43375.0,43374.0,0.37386693]
[1644551076422,0.32079406,43377.0,43375.0,0.057674]
[1644551076617,0.32079406,43377.0,43375.0,0.107674]
[1644551076818,0.32079406,43377.0,43375.0,0.165348]
[1644551077618,0.32079406,43377.0,43375.0,0.17302221]
[1644551078266,0.32079406,43377.0,43375.0,0.057674]
[1644551078467,0.42079406,43377.0,43375.0,0.057674]
[1644551078969,0.32079406,43377.0,43375.0,0.057674]
[1644551079366,0.51844433,43377.0,43375.0,0.057674]
[1644551080568,0.57612533,43377.0,43375.0,0.115354]
[1644551081171,0.57612533,43377.0,43375.0,0.057674]
[1644551082012,0.57612533,43377.0,43375.0,0.115355]
[1644551082417,0.51844433,43377.0,43375.0,0.115355]
[1644551083413,0.05768,43378.0,43375.0,0.115355]
[1644551083616,0.07647812,43380.0,43375.0,0.115355]
[1644551084217,0.07647812,43380.0,43376.0,0.16523493]
[1644551084419,0.07647812,43380.0,43377.0,0.05767466]
[1644551084615,0.2722749,43379.0,43377.0,0.05767466]
[1644551084817,0.10636333,43383.0,43377.0,0.05767466]
[1644551085017,0.34170238,43380.0,43376.0,0.10755993]
[1644551085219,0.34170238,43380.0,43377.0,0.115352]
[1644551085475,0.34170238,43380.0,43377.0,0.057676]
[1644551085874,0.3411141,43380.0,43377.0,0.057676]
[1644551086983,0.057677,43380.0,43377.0,0.057676]
[1644551087180,0.069155,43381.0,43377.0,0.057676]
[1644551087380,0.06975791,43381.0,43379.0,0.04988493]
[1644551087581,0.06975791,43381.0,43379.0,0.115352]
[1644551088182,0.41257793,43381.0,43379.0,0.115352]
[1644551088383,0.41197502,43381.0,43379.0,0.057676]
[1644551088583,0.37370436,43376.0,43375.0,0.115362]
[1644551090612,0.29460647,43377.0,43375.0,0.115362]
[1644551091612,0.6186721,43377.0,43375.0,0.115362]
[1644551092416,0.6186721,43377.0,43375.0,0.173045]
[1644551092612,0.057685,43377.0,43375.0,0.115362]
[1644551092815,0.0463,43379.0,43375.0,0.16524693]
[1644551092816,0.103978,43379.0,43375.0,0.16524693]
[1644551093862,0.103978,43379.0,43375.0,0.22292893]
[1644551094062,0.103978,43379.0,43376.0,0.05768]
[1644551094465,0.38616395,43379.0,43376.0,0.05768]
[1644551095062,0.49323713,43379.0,43376.0,0.11536]
[1644551095263,0.49323713,43379.0,43377.0,0.057679]
[1644551095664,0.38616395,43379.0,43377.0,0.057679]
[1644551095963,0.103978,43379.0,43377.0,0.057679]
[1644551097614,0.2770593,43378.0,43377.0,0.057679]
[1644551098013,0.3233593,43378.0,43377.0,0.057679]
[1644551098215,0.057688,43377.0,43375.0,0.057687]
[1644551098416,0.55105937,43376.0,43375.0,0.057687]
[1644551099714,0.24965019,43376.0,43375.0,0.057687]
[1644551100315,0.54852618,43376.0,43375.0,0.057687]
[1644551100764,0.65542702,43376.0,43375.0,0.057687]
[1644551100965,0.54852618,43376.0,43375.0,0.057687]
[1644551101166,0.65542702,43376.0,43375.0,0.057687]
[1644551102366,0.54852618,43376.0,43375.0,0.057687]
[1644551102570,0.24965019,43376.0,43375.0,0.057687]
[1644551104421,0.0463,43376.0,43375.0,0.057687]
[1644551107828,0.08159757,43376.0,43375.0,0.0575716]
[1644551109468,0.0463,43376.0,43375.0,0.00958558]
[1644551112213,0.04554,43376.0,43375.0,0.00958558]
[1644551112414,0.8,43375.0,43370.0,0.0001]
[1644551112618,0.8,43375.0,43362.0,0.07789558]
[1644551112619,0.35,43370.0,43362.0,0.07789558]
[1644551112817,0.35,43370.0,43362.0,0.02019858]
[1644551112818,0.00011507,43365.0,43362.0,0.02019858]
[1644551113021,0.0463,43364.0,43345.0,0.04988493]
[1644551113214,0.0463,43364.0,43344.0,0.2999141]
[1644551113215,0.3,43363.0,43344.0,0.2999141]
[1644551113420,0.19417113,43356.0,43344.0,0.2999141]
[1644551113615,0.39621754,43354.0,43348.0,0.057713]
[1644551113815,0.0463,43353.0,43348.0,0.057713]
[1644551114214,0.0463,43353.0,43349.0,0.057713]
[1644551114916,0.33260696,43353.0,43349.0,0.057713]
[1644551115116,0.65351165,43353.0,43349.0,0.05821515]
[1644551115319,0.36720469,43353.0,43350.0,0.057808]
[1644551115594,0.0463,43353.0,43350.0,0.057808]
[1644551115792,0.0463,43353.0,43351.0,0.323982]
[1644551115990,0.0463,43353.0,43350.0,0.057808]
[1644551116193,0.0463,43353.0,43351.0,0.04988493]
[1644551116392,0.06549858,43353.0,43351.0,0.04988493]
[1644551116595,0.06549858,43353.0,43351.0,0.09988493]
[1644551117491,0.06549858,43353.0,43351.0,0.05]
[1644551118293,0.08469716,43353.0,43351.0,0.05]
[1644551118491,0.06549858,43353.0,43351.0,0.05]
[1644551118691,0.06549858,43353.0,43350.0,0.057808]
[1644551118892,0.06549858,43353.0,43350.0,0.05831139]
[1644551119916,0.06549858,43353.0,43350.0,0.057808]
[1644551120316,0.08469716,43353.0,43350.0,0.057808]
[1644551120516,0.06549858,43353.0,43350.0,0.057808]
[1644551120719,0.06549858,43353.0,43350.0,0.11551258]
[1644551120917,0.06549858,43353.0,43350.0,0.10769293]
[1644551121115,0.06549858,43353.0,43350.0,0.057808]
[1644551122317,0.08469716,43353.0,43350.0,0.057808]
[1644551123271,0.0463,43353.0,43350.0,0.057808]
[1644551123468,0.0463,43353.0,43352.0,0.37386693]
[1644551124068,0.35773433,43359.0,43352.0,0.37386693]
[1644551124367,0.65828598,43359.0,43354.0,0.11539768]
[1644551124967,0.65828598,43359.0,43354.0,0.11590278]
[1644551125274,0.12708052,43361.0,43359.0,0.323982]
[1644551125471,0.12708052,43365.0,43359.0,0.323982]
[1644551125668,0.12708052,43372.0,43364.0,0.04988493]
[1644551125971,0.12708052,43372.0,43360.0,0.28380705]
[1644551125972,0.26356726,43375.0,43365.0,0.04988493]
[1644551126168,0.25284013,43370.0,43368.0,0.04988493]
[1644551126834,0.25284013,43370.0,43367.0,0.057681]
[1644551127033,0.25284013,43370.0,43368.0,0.04988493]
[1644551127833,0.25284013,43370.0,43368.0,0.10756993]
[1644551128035,0.057686,43374.0,43368.0,0.10756993]
[1644551128036,0.057686,43374.0,43369.0,0.057685]
[1644551128437,0.01919858,43370.0,43369.0,0.057685]
[1644551128640,0.01919858,43370.0,43369.0,0.05818955]
[1644551129036,0.29524274,43370.0,43369.0,0.05818955]
[1644551129636,0.29524274,43370.0,43369.0,0.057685]
[1644551130037,0.29524274,43370.0,43367.0,0.10038957]
[1644551130237,0.29524274,43370.0,43368.0,0.057689]
[1644551130463,0.28972303,43369.0,43368.0,0.057689]
[1644551130865,0.27953029,43369.0,43368.0,0.057689]
[1644551131665,0.27953029,43369.0,43366.0,0.05819265]
[1644551131864,0.40018778,43368.0,43366.0,0.05819265]
[1644551132066,0.40018778,43368.0,43366.0,0.057688]
[1644551132266,0.40018778,43368.0,43366.0,0.047688]
[1644551133774,0.40018778,43368.0,43365.0,0.05819565]
[1644551133775,0.28025442,43367.0,43365.0,0.05819565]
[1644551133970,0.32655442,43367.0,43365.0,0.00050465]
[1644551134233,0.35462002,43366.0,43365.0,0.00050465]
[1644551134420,0.96988179,43366.0,43365.0,0.00050465]
[1644551134619,0.96988179,43366.0,43350.0,0.0001]
[1644551134822,0.3746516,43351.0,43350.0,0.057809]
[1644551135021,0.0463,43351.0,43350.0,0.057809]
[1644551135519,0.0463,43351.0,43350.0,0.0001]
[1644551136523,0.06549858,43351.0,43350.0,0.0001]
[1644551136922,0.06549858,43351.0,43350.0,0.324082]
[1644551137124,0.06549858,43351.0,43350.0,0.323982]
[1644551137974,0.06049858,43351.0,43350.0,0.323982]
[1644551138379,0.07969716,43351.0,43350.0,0.323982]
[1644551138575,0.06049858,43351.0,43350.0,0.323982]
[1644551138776,0.06049858,43351.0,43349.0,0.057708]
[1644551140380,0.07969716,43351.0,43349.0,0.057708]
[1644551141282,0.07969716,43351.0,43350.0,0.323982]
[1644551141487,0.07969716,43351.0,43349.0,0.057708]
[1644551142315,0.09889574,43351.0,43349.0,0.107708]
[1644551142516,0.06049858,43351.0,43350.0,0.323982]
[1644551142716,0.06049858,43351.0,43349.0,0.107708]
[1644551144020,0.06049858,43351.0,43350.0,0.323982]
[1644551144418,0.07969716,43351.0,43350.0,0.323982]
[1644551144618,0.06049858,43351.0,43350.0,0.323982]
[1644551145021,0.06049858,43351.0,43349.0,0.107708]
[1644551146363,0.07969716,43351.0,43349.0,0.107708]
[1644551146567,0.06049858,43351.0,43349.0,0.107708]
[1644551148465,0.07969716,43351.0,43349.0,0.107708]
[1644551148666,0.06049858,43351.0,43349.0,0.107708]
[1644551149070,0.06049858,43351.0,43350.0,0.323982]
[1644551149518,0.06049858,43351.0,43349.0,0.107708]
[1644551151918,0.01919858,43351.0,43350.0,0.323982]
[1644551152318,0.01919858,43351.0,43350.0,0.431679]
[1644551152519,0.03839716,43351.0,43350.0,0.50611343]
[1644551152718,0.01919858,43351.0,43350.0,0.50611343]
[1644551153364,0.01919858,43351.0,43350.0,0.50467243]
[1644551153564,0.01919858,43351.0,43350.0,0.44697543]
[1644551154470,0.01919858,43351.0,43350.0,0.40841643]
[1644551154471,0.03839716,43351.0,43350.0,0.40841643]
[1644551154668,0.01919858,43351.0,43350.0,0.323982]
[1644551154969,0.0191384,43351.0,43350.0,0.323982]
[1644551156719,0.0191384,43351.0,43349.0,0.323982]
[1644551157116,0.0382768,43351.0,43349.0,0.323982]
[1644551157316,0.0191384,43351.0,43349.0,0.323982]
[1644551158419,0.0382768,43351.0,43349.0,0.323982]
[1644551158617,0.0191384,43351.0,43349.0,0.323982]
[1644551158819,0.0191384,43351.0,43349.0,0.32422607]
[1644551159221,0.0191384,43351.0,43350.0,0.323982]
[1644551160468,0.0191384,43351.0,43340.0,0.4955]
[1644551160469,0.0382768,43351.0,43340.0,0.4955]
[1644551160670,0.0191384,43351.0,43349.0,0.0002526]
[1644551160868,0.0191384,43351.0,43341.0,0.0002526]
[1644551161172,0.0191384,43351.0,43345.0,0.057707]
[1644551161367,0.0191384,43351.0,43346.0,0.381689]
[1644551161568,0.0191384,43351.0,43347.0,0.323982]
[1644551161767,0.0191384,43351.0,43348.0,0.323982]
[1644551161974,0.0191384,43351.0,43349.0,0.323982]
[1644551162169,0.0191384,43351.0,43341.0,0.40176877]
[1644551162170,0.0191384,43351.0,43350.0,0.381681]
[1644551162568,0.0382768,43351.0,43350.0,0.381681]
[1644551162970,0.0382768,43351.0,43350.0,0.3819336]
[1644551163369,0.11612371,43361.0,43350.0,0.3819336]
[1644551163569,0.1145,43361.0,43352.0,0.057698]
[1644551163771,0.0463,43363.0,43352.0,0.05769644]
[1644551163970,0.0463,43363.0,43350.0,0.0002526]
[1644551163971,0.0023492,43361.0,43350.0,0.0002526]
[1644551164222,0.33359282,43361.0,43348.0,0.0002526]
[1644551164419,0.40217381,43358.0,43349.0,0.23077522]
[1644551164620,0.35273122,43361.0,43350.0,0.1731]
[1644551164818,0.05,43358.0,43351.0,0.05769794]
[1644551165217,0.40038202,43361.0,43351.0,0.05769794]
[1644551165616,0.39318202,43361.0,43351.0,0.05769794]
[1644551166017,0.39318202,43361.0,43352.0,0.057698]
[1644551166316,0.39318202,43361.0,43352.0,0.115396]
[1644551166516,0.41232042,43361.0,43352.0,0.115396]
[1644551166817,0.39318202,43361.0,43352.0,0.115396]
[1644551167717,0.39318202,43361.0,43352.0,0.057698]
[1644551167964,0.057701,43360.0,43352.0,0.057698]
[1644551169673,0.39318202,43361.0,43352.0,0.057698]
[1644551169870,0.35038202,43361.0,43352.0,0.057698]
[1644551170366,0.35038202,43361.0,43354.0,0.057695]
[1644551170567,0.36952042,43361.0,43354.0,0.057695]
[1644551170769,0.35038202,43361.0,43354.0,0.057695]
[1644551174020,0.34038202,43361.0,43354.0,0.057695]
[1644551174220,0.34038202,43361.0,43354.0,0.13928696]
[1644551174823,0.34038202,43361.0,43354.0,0.057695]
[1644551175021,0.38730013,43357.0,43352.0,0.0579566]
[1644551175220,0.38730013,43357.0,43351.0,0.0002526]
[1644551175466,0.38730013,43357.0,43349.0,0.39950339]
[1644551175767,0.38730013,43357.0,43349.0,0.115402]
[1644551176366,0.38730013,43357.0,43349.0,0.1156546]
[1644551176566,0.40643853,43357.0,43350.0,0.057702]
[1644551176768,0.40643853,43357.0,43350.0,0.0579546]
[1644551176967,0.40643853,43357.0,43350.0,0.057702]
[1644551177570,0.40643853,43357.0,43350.0,0.115401]
[1644551177769,0.0191384,43357.0,43351.0,0.057699]
[1644551178070,0.0191384,43357.0,43352.0,0.057699]
[1644551178470,0.0382768,43357.0,43352.0,0.0579516]
[1644551178670,0.0191384,43357.0,43352.0,0.057699]
[1644551178869,0.0191384,43357.0,43353.0,0.057697]
[1644551179070,0.0191384,43357.0,43353.0,0.115394]
[1644551179921,0.0191384,43357.0,43353.0,0.057697]
[1644551180121,0.0191384,43357.0,43351.0,0.0002526]
[1644551180319,0.0463,43356.0,43349.0,0.0002526]
[1644551180519,0.0463,43356.0,43344.0,0.0002526]
[1644551180719,0.0463,43356.0,43345.0,0.323982]
[1644551180921,0.0463,43356.0,43346.0,0.00049897]
[1644551181119,0.33415343,43352.0,43346.0,0.05820297]
[1644551181323,0.38045343,43352.0,43346.0,0.05820297]
[1644551181720,0.38045343,43352.0,43347.0,0.323982]
[1644551181920,0.38045343,43352.0,43348.0,0.38169]
[1644551182121,0.38045343,43352.0,43349.0,0.323982]
[1644551182322,0.38045343,43352.0,43348.0,0.057708]
[1644551182524,0.39959183,43352.0,43348.0,0.057708]
[1644551182721,0.39959183,43352.0,43348.0,0.0579606]
[1644551183379,0.39959183,43352.0,43348.0,0.057708]
[1644551183782,0.39959183,43352.0,43347.0,0.0002526]
[1644551183983,0.0654384,43352.0,43346.0,0.00049916]
[1644551184385,0.0654384,43352.0,43342.0,0.0002526]
[1644551184386,0.15,43350.0,43342.0,0.0002526]
[1644551184582,0.35439216,43343.0,43339.0,0.0002526]
[1644551184781,0.40069216,43343.0,43334.0,0.1232]
[1644551184981,0.40069216,43343.0,43337.0,0.00025264]
[1644551185183,0.40069216,43343.0,43335.0,0.05772]
[1644551185381,0.40069216,43343.0,43333.0,0.00025264]
[1644551185582,0.40069216,43343.0,43338.0,0.00049925]
[1644551185781,0.40069216,43343.0,43338.0,0.05821625]
[1644551185984,0.40069216,43343.0,43340.0,0.323965]
[1644551186183,0.40069216,43343.0,43338.0,0.00075189]
[1644551186388,0.40069216,43343.0,43328.0,0.07]
[1644551186389,0.05,43339.0,43328.0,0.07]
[1644551186583,0.95,43341.0,43328.0,0.07]
[1644551186584,0.207734,43333.0,43328.0,0.07]
[1644551186831,0.381708,43331.0,43328.0,0.07]
[1644551187132,0.38922365,43329.0,43328.0,0.07]
[1644551187329,1.04541759,43329.0,43328.0,0.07]
[1644551188529,1.06455599,43329.0,43328.0,0.07]
[1644551189329,1.04541759,43329.0,43328.0,0.07]
[1644551189529,1.2032418,43329.0,43328.0,0.07]
[1644551189728,1.2532418,43329.0,43328.0,0.07]
[1644551190130,1.09541759,43329.0,43328.0,0.06]
[1644551190568,1.27237975,43329.0,43328.0,0.06]
[1644551190768,1.06455599,43329.0,43328.0,0.06]
[1644551191373,0.0654384,43329.0,43328.0,0.06]
[1644551191573,0.5,43338.0,43328.0,0.383973]
[1644551191772,0.5,43338.0,43331.0,0.0639527]
[1644551192171,0.5,43338.0,43330.0,0.17316099]
[1644551192372,0.68221901,43337.0,43331.0,0.057722]
[1644551192771,0.84002997,43337.0,43331.0,0.057722]
[1644551192973,0.52926895,43337.0,43331.0,0.057722]
[1644551193171,0.37145799,43337.0,43331.0,0.057722]
[1644551193475,0.37145799,43337.0,43332.0,0.00059449]
[1644551193972,0.370273,43336.0,43329.0,0.17317594]
[1644551194228,0.323973,43335.0,43332.0,0.00018313]
[1644551194424,0.370273,43335.0,43332.0,0.00018313]
[1644551195323,0.370273,43335.0,43329.0,0.05773]
[1644551195527,0.370273,43335.0,43331.0,0.00048727]
[1644551195925,0.057726,43332.0,43331.0,0.00048727]
[1644551196527,0.39649535,43330.0,43328.0,0.06]
[1644551196727,0.39649535,43330.0,43329.0,0.0004873]
[1644551196927,0.72046835,43330.0,43329.0,0.0004873]
[1644551197325,0.39649535,43330.0,43329.0,0.0004873]
[1644551197525,0.74920421,43330.0,43329.0,0.0004873]
[1644551197725,0.39649535,43330.0,43328.0,0.06]
[1644551198973,0.31667801,43329.0,43328.0,0.06]
[1644551199374,0.64065101,43329.0,43328.0,0.06]
[1644551199972,0.31667801,43329.0,43328.0,0.06]
[1644551202221,0.39649535,43330.0,43328.0,0.06]
[1644551202418,0.39649535,43330.0,43329.0,0.323973]
[1644551202619,0.39649535,43330.0,43329.0,0.00025158]
[1644551203018,0.72046835,43330.0,43329.0,0.00025158]
[1644551203222,0.71509816,43330.0,43328.0,0.06]
[1644551203821,0.323973,43329.0,43328.0,0.06]
[1644551204121,0.71509816,43330.0,43328.0,0.06025158]
[1644551204319,0.323973,43329.0,43328.0,0.06025158]
[1644551204520,0.71509816,43330.0,43328.0,0.06025158]
[1644551204924,0.0209563,43329.0,43328.0,0.06025158]
[1644551206372,0.0209563,43329.0,43328.0,0.38422458]
[1644551206975,0.02036443,43329.0,43328.0,0.38422458]
[1644551207175,0.02036443,43329.0,43328.0,0.383973]
[1644551207576,0.02036443,43329.0,43318.0,0.04787942]
[1644551207577,0.9,43327.0,43318.0,0.04787942]
[1644551207777,0.9,43327.0,43314.0,0.01926997]
[1644551207778,0.15,43320.0,43314.0,0.01926997]
[1644551207979,0.057726,43318.0,43314.0,0.01926997]
[1644551208177,0.323973,43316.0,43306.0,0.00199796]
[1644551208480,0.23755571,43313.0,43306.0,0.00199796]
[1644551208678,0.36176696,43309.0,43306.0,0.00199796]
[1644551208876,0.0463,43308.0,43306.0,0.00199796]
[1644551209077,0.0463,43308.0,43307.0,0.323973]
[1644551209324,0.0463,43308.0,43304.0,0.3651]
[1644551209725,0.0463,43308.0,43305.0,0.323973]
[1644551210124,0.0463,43308.0,43304.0,0.36559868]
[1644551210928,0.0463,43308.0,43305.0,0.323973]
[1644551211128,0.0463,43308.0,43305.0,0.00025177]
[1644551211327,0.0463,43308.0,43304.0,0.36559868]
[1644551211825,0.0463,43308.0,43304.0,0.36585045]
[1644551212226,0.0463,43308.0,43304.0,0.36559868]
[1644551212426,0.0463,43308.0,43304.0,0.3651]
[1644551212627,0.0463,43308.0,43304.0,0.36559868]
[1644551213071,0.375987,43308.0,43304.0,0.36559868]
[1644551213271,0.323973,43307.0,43304.0,0.00049868]
[1644551213472,0.0463,43306.0,43304.0,0.00049868]
[1644551213675,0.0463,43306.0,43303.0,0.313173]
[1644551213875,0.34806696,43309.0,43306.0,0.02]
[1644551214073,0.0463,43308.0,43306.0,0.02]
[1644551214271,0.104062,43308.0,43306.0,0.02]
[1644551214474,0.324174,43307.0,43306.0,0.02]
[1644551214673,0.370474,43307.0,43306.0,0.02]
[1644551216577,0.68254445,43307.0,43306.0,0.02]
[1644551217634,0.78254445,43307.0,43306.0,0.02]
[1644551217822,0.68254445,43307.0,43306.0,0.02]
[1644551218221,0.92364767,43307.0,43306.0,0.02]
[1644551218620,0.84045485,43307.0,43306.0,0.02]
[1644551218825,0.85972482,43307.0,43306.0,0.02]
[1644551219020,1.20181442,43307.0,43306.0,0.02]
[1644551219420,1.55972482,43307.0,43306.0,0.02]
[1644551219623,1.70972482,43307.0,43306.0,0.02]
[1644551220468,1.50972482,43307.0,43306.0,0.02]
[1644551220669,1.72899479,43307.0,43306.0,0.02]
[1644551220869,1.70972482,43307.0,43306.0,0.02]
[1644551222575,1.70972482,43307.0,43300.0,0.0001]
[1644551222576,0.324174,43304.0,43300.0,0.0001]
[1644551222775,0.068295,43301.0,43300.0,0.0001]
[1644551222973,0.45472094,43301.0,43300.0,0.0001]
[1644551223373,0.55472094,43301.0,43300.0,0.0001]
[1644551223572,0.76959267,43301.0,43300.0,0.0001]
[1644551223774,1.26959267,43301.0,43300.0,0.0001]
[1644551223977,1.42750307,43301.0,43300.0,0.0001]
[1644551224422,1.98529107,43301.0,43300.0,0.0001]
[1644551224820,2.00456104,43301.0,43300.0,0.0001]
[1644551225019,1.98529107,43301.0,43300.0,0.0001]
[1644551226825,2.15456104,43301.0,43300.0,0.0001]
[1644551227226,2.00456104,43301.0,43300.0,0.0001]
[1644551228473,1.50456104,43301.0,43300.0,0.0001]
[1644551228772,1.52383101,43301.0,43300.0,0.0001]
[1644551229472,1.84355284,43301.0,43300.0,0.0001]
[1644551229676,1.48529107,43301.0,43300.0,0.0001]
[1644551230874,1.50456104,43301.0,43300.0,0.0001]
[1644551232924,1.52383101,43301.0,43300.0,0.0001]
[1644551233125,1.50456104,43301.0,43300.0,0.0001]
[1644551234828,1.52383101,43301.0,43300.0,0.0001]
[1644551235027,1.50456104,43301.0,43300.0,0.0001]
[1644551235875,1.18968931,43301.0,43300.0,0.0001]
[1644551236077,0.74547537,43301.0,43300.0,0.0001]
[1644551236475,0.58756497,43301.0,43300.0,0.0001]
[1644551236678,0.60683494,43301.0,43300.0,0.0001]
[1644551236880,0.58756497,43301.0,43300.0,0.0001]
[1644551237078,0.84344397,43301.0,43300.0,0.0001]
[1644551237276,0.34344397,43301.0,43300.0,0.0001]
[1644551238176,0.40121897,43301.0,43300.0,0.0001]
[1644551238779,0.42048894,43301.0,43300.0,0.0001]
[1644551238980,0.40121897,43301.0,43300.0,0.0001]
[1644551240836,0.42048894,43301.0,43300.0,0.0001]
[1644551241434,0.40121897,43301.0,43300.0,0.0001]
[1644551241634,0.381949,43301.0,43300.0,0.0001]
[1644551242975,0.34344397,43301.0,43300.0,0.0001]